bitfinex/quotes_ETHUSD_20240927
["timestamp","ask_amount","ask_price","bid_price","bid_amount"]
[1727449742176,4.49524,2693.2,2692.5,0.07427758]
[1727449742377,3.71333,2693.0,2692.4,4.48685]
[1727449742578,1.231606,2693.2,2692.4,0.7727]
[1727449742579,3.7137,2692.8,2692.4,0.7727]
[1727449742875,3.71401,2692.6,2692.4,0.7727]
[1727449743104,3.71402,2692.5,2692.1,3.7953]
[1727449743886,4.085195,2692.7,2692.1,3.7953]
[1727449743887,3.71388,2692.6,2692.1,3.7953]
[1727449744579,3.71388,2692.6,2692.1,7.50978]
[1727449744883,3.71388,2692.6,2692.1,3.7953]
[1727449745085,7.42785,2692.6,2692.1,3.7953]
[1727449745279,3.71424,2692.4,2692.1,0.7953]
[1727449746597,3.71424,2692.4,2691.9,3.0]
[1727449747135,3.80728152,2692.3,2691.8,0.7529]
[1727449747339,4.20906655,2692.4,2691.8,4.46785]
[1727449747630,4.20906655,2692.4,2691.8,0.7529]
[1727449747631,3.71423,2692.4,2691.8,0.7529]
[1727449747809,3.71437,2692.3,2691.8,4.46782]
[1727449748126,3.71464,2692.1,2691.5,3.7153]
[1727449748285,3.71464,2692.1,2691.3,3.71564]
[1727449748286,3.71485,2691.9,2691.4,4.48338]
[1727449748785,3.71499,2691.8,2691.4,0.7679]
[1727449749353,3.71466,2692.1,2691.5,3.71537]
[1727449749629,7.86810199,2692.3,2691.4,0.7679]
[1727449749630,3.71436,2692.3,2691.8,3.71497]
[1727449749921,3.71459,2692.1,2691.5,3.71537]
[1727449750218,3.71472,2692.0,2691.5,3.71537]
[1727449750535,4.45724,2692.3,2691.7,3.0]
[1727449750536,3.71459,2692.1,2691.7,3.0]
[1727449750882,3.71472,2692.0,2691.7,3.0]
[1727449751085,3.71472,2692.0,2691.6,3.0]
[1727449751304,3.71488,2691.9,2691.5,3.0]
[1727449752390,3.71471,2692.0,2691.5,6.71539]
[1727449753122,3.71484,2691.9,2691.4,0.7679]
[1727449753330,3.71507,2691.8,2691.4,0.7679]
[1727449754096,3.71484,2691.9,2691.4,0.7679]
[1727449754306,3.71506,2691.8,2691.4,0.7679]
[1727449754623,3.71512,2691.7,2691.4,0.7679]
[1727449755037,3.71526,2691.6,2691.2,3.0]
[1727449756232,3.71526,2691.6,2691.2,6.71579]
[1727449756726,1.5619024,2692.0,2691.4,3.0]
[1727449756894,3.71492,2691.9,2691.4,6.71551]
[1727449758307,3.71464,2692.1,2691.5,3.71527]
[1727449758634,7.4293,2692.1,2691.6,4.53642]
[1727449758803,3.71464,2692.1,2691.7,3.7151]
[1727449759007,0.8325,2692.3,2691.6,0.8212]
[1727449759197,0.8325,2692.3,2691.9,3.71477]
[1727449759894,4.54679,2692.3,2691.9,3.71477]
[1727449760096,3.71444,2692.2,2691.7,3.71501]
[1727449760338,3.71478,2692.0,2691.6,0.8212]
[1727449760552,3.7146,2692.1,2691.6,0.8212]
[1727449760761,3.71485,2691.9,2691.6,0.8212]
[1727449760917,3.71485,2691.9,2691.3,7.46605]
[1727449760918,3.71498,2691.8,2691.3,7.46605]
[1727449762249,3.71485,2691.9,2691.4,7.43096]
[1727449762451,3.71499,2691.8,2691.3,4.46617]
[1727449762657,3.71473,2692.0,2691.5,3.71533]
[1727449762954,4.54685,2692.3,2691.7,3.71501]
[1727449763160,3.71435,2692.3,2691.7,3.78931286]
[1727449763452,3.71435,2692.3,2691.7,3.71502]
[1727449763925,3.71435,2692.3,2691.5,0.7986]
[1727449763926,3.71411,2692.5,2692.0,0.8176]
[1727449764126,3.71416,2692.4,2692.0,0.8176]
[1727449764376,3.71379,2692.7,2692.1,3.71457]
[1727449764703,3.71379,2692.7,2692.1,0.07428308]
[1727449765002,3.7139,2692.6,2692.1,3.78885308]
[1727449765156,3.7139,2692.6,2692.1,3.71457]
[1727449765356,3.7139,2692.6,2692.1,7.42906]
[1727449765799,3.7139,2692.6,2692.1,3.71449]
[1727449766170,3.7139,2692.6,2692.2,3.71441]
[1727449767401,4.51879,2693.3,2692.4,0.8006]
[1727449767601,3.71287,2693.4,2692.8,3.71359]
[1727449768307,3.71287,2693.4,2692.9,3.0]
[1727449768666,3.71287,2693.4,2693.0,0.7502]
[1727449769602,7.42576,2693.4,2693.0,0.7502]
[1727449769799,7.42577,2693.4,2693.0,0.7502]
[1727449770104,3.71287,2693.4,2693.0,0.7502]
[1727449770463,3.71286,2693.4,2693.0,0.7502]
[1727449770868,4.15373199,2693.1,2692.6,0.8119]
[1727449771117,3.7132,2693.1,2692.7,3.0]
[1727449771259,3.7132,2693.1,2692.6,3.8119]
[1727449771662,7.42679,2693.0,2692.6,3.8119]
[1727449771889,3.71333,2693.0,2692.6,0.8119]
[1727449772333,3.71312,2693.2,2692.7,3.0]
[1727449772788,7.42629,2693.2,2692.6,3.8119]
[1727449773106,7.42629,2693.2,2692.6,7.52576]
[1727449773710,3.71312,2693.2,2692.6,3.8119]
[1727449774027,3.7134,2693.0,2692.6,3.8119]
[1727449774322,4.54627789,2693.2,2692.6,3.8119]
[1727449774635,3.7137,2692.8,2692.5,3.0]
[1727449774801,3.71347,2692.9,2692.4,6.71413]
[1727449775132,3.71337,2693.0,2692.4,3.0]
[1727449775290,3.71362,2692.8,2692.4,3.0]
[1727449775487,3.71378,2692.7,2692.3,0.7922]
[1727449775728,3.7139,2692.6,2692.3,0.7922]
[1727449775929,3.71389,2692.6,2692.3,3.7922]
[1727449776089,3.71389,2692.6,2692.3,0.7922]
[1727449776286,4.456641,2692.6,2692.0,0.8142]
[1727449776487,3.71441,2692.3,2691.9,7.29]
[1727449776701,3.71423,2692.4,2691.8,3.71485]
[1727449777115,3.71423,2692.4,2691.8,7.42974]
[1727449777424,3.71423,2692.4,2691.8,3.71485]
[1727449777640,3.71445,2692.2,2691.7,4.52929]
[1727449777786,3.71445,2692.2,2691.7,0.8142]
[1727449778153,3.71445,2692.2,2691.5,3.71539]
[1727449778289,4.46485,2692.2,2691.6,3.71525]
[1727449778490,3.71445,2692.2,2691.6,3.71525]
[1727449778711,3.71445,2692.2,2691.7,3.71502]
[1727449778933,7.42854,2692.4,2691.8,3.71496]
[1727449779101,3.71436,2692.3,2691.8,3.449038]
[1727449779424,4.6064191,2692.4,2691.8,3.449038]
[1727449779740,4.50684,2692.8,2692.1,7.46849]
[1727449779900,3.71391,2692.6,2692.1,7.46849]
[1727449781097,3.71377,2692.7,2692.2,3.7144]
[1727449781487,3.71397,2692.6,2692.2,3.71441]
[1727449781712,8.08874716,2692.8,2692.2,3.71441]
[1727449781935,7.42741,2692.8,2692.2,3.71441]
[1727449782433,7.42741,2692.8,2692.2,3.71436]
[1727449782631,7.42741,2692.8,2692.2,3.78864229]
[1727449782790,3.7137,2692.8,2692.2,3.71436]
[1727449783137,3.7137,2692.8,2692.3,3.71428]
[1727449783339,3.71382,2692.7,2692.2,3.71436]
[1727449783788,3.71346,2692.9,2692.4,3.71405]
[1727449784192,3.71334,2693.0,2692.5,3.71394]
[1727449784793,3.71334,2693.0,2692.5,7.42788]
[1727449784995,3.71334,2693.0,2692.6,0.758]
[1727449785427,3.71319,2693.1,2692.6,4.4718]
[1727449785637,3.71338,2693.0,2692.6,3.758]
[1727449786298,3.71315,2693.2,2692.6,3.758]
[1727449786494,3.71319,2693.1,2692.6,7.47184]
[1727449786827,3.71336,2693.0,2692.6,3.758]
[1727449787215,3.7132,2693.1,2692.7,3.7137]
[1727449787595,3.7132,2693.1,2692.6,0.758]
[1727449787832,3.7132,2693.1,2692.6,8.18554]
[1727449788134,4.46402,2693.3,2692.7,3.71373]
[1727449788321,3.7132,2693.1,2692.6,4.47175]
[1727449788635,7.42648,2693.1,2692.6,0.758]
[1727449788841,3.7132,2693.1,2692.6,4.47186]
[1727449789541,8.3602644,2693.5,2692.7,0.07426928]
[1727449789713,0.1286091,2693.5,2693.2,3.71297]
[1727449789908,0.1286091,2693.5,2693.3,0.7513]
[1727449790305,0.1286091,2693.5,2693.4,6.71277]
[1727449791499,0.1286091,2693.5,2693.4,3.0]
[1727449792200,0.1286091,2693.5,2693.3,0.7513]
[1727449793137,3.49008877,2693.5,2693.0,3.7513]
[1727449793297,4.65916865,2693.5,2693.0,7.46462]
[1727449793808,1.29768898,2693.5,2693.0,3.7513]
[1727449794329,0.1286091,2693.5,2693.0,3.7513]
[1727449794638,0.1286091,2693.5,2693.2,6.71297]
[1727449794797,0.1286091,2693.5,2693.3,3.71278]
[1727449795232,0.1286091,2693.5,2693.2,6.71297]
[1727449795405,0.1286091,2693.5,2693.2,6.71295]
[1727449795720,0.1286091,2693.5,2693.2,10.42591]
[1727449795898,0.1286091,2693.5,2693.3,3.71288]
[1727449797100,0.1286091,2693.5,2693.2,6.71295]
[1727449797446,0.1286091,2693.5,2693.2,10.42593]
[1727449798095,0.1286091,2693.5,2693.2,6.71295]
[1727449798902,3.49008877,2693.5,2693.1,6.71318]
[1727449799100,4.21034865,2693.5,2693.1,6.71318]
[1727449799729,4.21034865,2693.5,2693.2,3.71305]
[1727449799730,3.49008877,2693.5,2693.2,3.71305]
[1727449799902,0.1286091,2693.5,2693.3,3.0]
[1727449800102,0.1286091,2693.5,2693.2,3.0]
[1727449800523,0.1286091,2693.5,2693.2,6.71304]
[1727449800726,0.1286091,2693.5,2693.3,3.71289]
[1727449800928,0.1286091,2693.5,2693.4,7.49867]
[1727449802420,3.71331,2693.1,2692.7,7.29]
[1727449802737,3.71331,2693.1,2692.5,4.47823]
[1727449802738,3.36147967,2693.1,2692.6,3.71375]
[1727449803149,3.36147967,2693.1,2692.5,0.7643]
[1727449803336,7.07517967,2692.8,2692.2,4.49215]
[1727449803667,3.36147967,2692.8,2692.3,3.71428]
[1727449803833,3.36147967,2692.8,2692.2,4.49215]
[1727449803834,3.36147967,2692.8,2692.4,3.71404]
[1727449804032,0.7556,2692.9,2692.4,3.71404]
[1727449804758,7.41090764,2693.1,2692.7,3.71366]
[1727449804759,0.8205,2693.1,2692.7,3.71366]
[1727449804967,4.18197967,2693.4,2692.8,3.71353]
[1727449805166,4.53328,2693.4,2692.9,3.71339]
[1727449805469,0.1286091,2693.5,2693.1,3.71307]
[1727449805845,0.1286091,2693.5,2692.9,6.71337]
[1727449806066,0.1286091,2693.5,2693.1,3.71317]
[1727449806224,0.0786091,2693.5,2693.1,3.71317]
[1727449806426,0.0786091,2693.5,2692.9,6.71337]
[1727449806644,0.0786091,2693.5,2693.1,3.0]
[1727449806828,3.7912491,2693.5,2693.0,6.71331]
[1727449807028,3.71279,2693.4,2693.0,3.0]
[1727449807263,3.71293,2693.3,2692.8,3.0]
[1727449807770,3.71314,2693.2,2692.8,3.0]
[1727449807972,0.7798,2693.2,2692.6,0.7975]
[1727449808264,0.7798,2693.2,2692.8,3.0]
[1727449808467,0.7798,2693.2,2692.8,6.78782422]
[1727449808881,0.7798,2693.2,2692.8,3.07426422]
[1727449809230,4.4927,2693.4,2692.8,3.07426422]
[1727449809460,4.4927,2693.4,2692.8,6.71355]
[1727449809668,4.4927,2693.4,2692.9,3.71345]
[1727449810130,1.69940952,2693.4,2692.8,3.0]
[1727449810448,3.71313,2693.2,2692.7,3.0]
[1727449810644,3.71326,2693.1,2692.6,3.7975]
[1727449810843,3.71313,2693.2,2692.4,3.0]
[1727449810844,0.8046,2692.9,2692.4,3.0]
[1727449811053,3.7137,2692.8,2692.4,3.0]
[1727449811374,0.8046,2692.9,2692.4,3.0]
[1727449811531,4.51806,2692.9,2692.4,6.71412]
[1727449812241,4.51806,2692.9,2692.5,3.71398]
[1727449812242,0.8046,2692.9,2692.5,3.71398]
[1727449812441,3.71363,2692.8,2692.4,3.0]
[1727449812743,0.451823,2692.8,2692.1,3.71443]
[1727449813100,3.71419,2692.4,2691.9,3.71476]
[1727449813290,0.8055,2692.7,2691.7,4.49243]
[1727449813431,7.84936624,2692.8,2691.7,4.49243]
[1727449813432,3.71437,2692.3,2691.7,8.20747]
[1727449813786,1.23697062,2692.3,2691.7,0.7774]
[1727449813949,1.23697062,2692.3,2691.5,3.71531]
[1727449813950,3.71474,2692.0,2691.5,7.43063]
[1727449814136,3.71445,2692.2,2691.7,3.71505]
[1727449814343,3.71445,2692.2,2691.7,3.71504]
[1727449814543,4.51978,2692.4,2691.7,3.71504]
[1727449814767,3.71448,2692.2,2691.7,3.71504]
[1727449815348,1.67105162,2692.4,2691.7,3.71504]
[1727449815554,3.71432,2692.3,2691.7,3.71499]
[1727449815940,7.4287,2692.3,2691.8,3.71496]
[1727449816149,1.67105162,2692.4,2691.9,3.71484]
[1727449816384,4.51967,2692.4,2691.9,3.71484]
[1727449816880,4.51967,2692.4,2691.9,3.581043]
[1727449817401,0.8055,2692.4,2691.7,3.0]
[1727449817549,3.71454,2692.2,2691.7,3.0]
[1727449817752,4.086154,2692.1,2691.7,3.0]
[1727449818654,0.371454,2692.1,2691.7,6.71504]
[1727449818868,3.7145,2692.2,2691.7,6.71504]
[1727449819099,4.51976,2692.4,2691.7,3.0]
[1727449819279,3.71402,2692.5,2692.0,3.0]
[1727449819593,0.822438,2692.5,2692.0,6.71463]
[1727449820382,3.71422,2692.4,2692.0,3.0]
[1727449820809,3.71422,2692.4,2692.0,6.71467]
[1727449821009,4.536488,2692.5,2692.0,6.71467]
[1727449821176,4.536488,2692.5,2692.0,3.0]
[1727449821177,1.31825942,2692.4,2692.0,3.0]
[1727449821379,3.7144,2692.3,2691.8,6.71494]
[1727449821583,3.7144,2692.3,2691.8,6.71492]
[1727449821823,3.7144,2692.3,2691.8,3.0]
[1727449821990,3.71463,2692.1,2691.8,3.0]
[1727449822323,3.71498,2691.8,2691.7,3.0]
[1727449822537,0.86708162,2691.8,2691.4,3.71552]
[1727449822823,0.86708162,2691.8,2691.0,4.54888]
[1727449822824,3.71541,2691.5,2691.0,4.54888]
[1727449823003,3.71541,2691.5,2691.1,3.71591]
[1727449823212,7.85095624,2691.7,2691.2,3.71569]
[1727449823386,3.71522,2691.7,2691.2,3.71569]
[1727449823583,0.86708162,2691.8,2691.3,3.71566]
[1727449823789,0.86708162,2691.8,2691.4,3.71551]
[1727449824423,4.58208162,2691.8,2691.3,3.71567]
[1727449824983,4.95583624,2692.0,2691.4,3.0]
[1727449825191,3.71486,2691.9,2691.5,3.71538]
[1727449825386,4.53488,2692.0,2691.5,3.71538]
[1727449825587,4.53488,2692.0,2691.0,4.54888]
[1727449825588,9.49552624,2692.0,2691.0,4.54888]
[1727449825836,3.71557,2691.4,2691.0,3.71608]
[1727449826001,4.46877,2691.4,2691.0,3.71608]
[1727449826206,0.7532,2691.4,2691.0,3.71608]
[1727449826614,4.4688,2691.4,2690.9,3.71622]
[1727449826831,4.4688,2691.4,2691.0,3.71607]
[1727449826832,0.7532,2691.4,2691.0,3.71607]
[1727449827189,3.71608,2691.1,2690.5,4.46681]
[1727449827426,0.7532,2690.8,2690.4,0.58227532]
[1727449827624,8.60498624,2691.1,2690.6,3.71653]
[1727449827933,9.39016486,2691.1,2690.6,3.71653]
[1727449828189,3.71618,2691.0,2690.5,3.71668]
[1727449828341,0.7532,2691.1,2690.8,3.71629]
[1727449828553,3.71583,2691.2,2690.8,3.71629]
[1727449828713,4.87244762,2691.3,2690.8,3.71629]
[1727449828910,1.15669762,2691.3,2690.9,3.71621]
[1727449829225,3.7159,2691.2,2690.7,3.0]
[1727449829435,3.7159,2691.2,2690.7,6.71645]
[1727449829636,4.87248762,2691.3,2690.9,3.71622]
[1727449829944,0.8222,2691.7,2691.0,3.79040991]
[1727449830237,0.8222,2691.7,2691.2,3.7157]
[1727449830441,3.71526,2691.6,2691.3,3.0]
[1727449830609,4.540506,2691.6,2691.3,3.0]
[1727449830808,3.71526,2691.6,2691.3,3.0]
[1727449831012,0.8222,2691.7,2691.3,3.0]
[1727449831239,0.8222,2691.7,2691.3,6.71565]
[1727449831931,0.8222,2691.7,2691.4,0.06472244]
[1727449832138,3.7154,2691.5,2691.4,0.06472244]
[1727449832453,3.7157,2691.3,2690.8,6.71622]
[1727449832631,3.7157,2691.3,2690.7,8.0765]
[1727449832632,0.8258,2691.2,2690.7,11.79291]
[1727449833029,1.20756,2691.5,2691.1,3.71587]
[1727449833243,1.20756,2691.5,2691.2,3.71574]
[1727449833440,3.71514,2691.7,2691.2,7.43148]
[1727449833651,3.71536,2691.6,2691.1,3.71587]
[1727449833852,3.71513,2691.7,2691.2,3.71579]
[1727449834231,4.536696,2691.7,2691.2,3.71579]
[1727449835261,4.536696,2691.7,2691.2,3.71573]
[1727449835461,3.71513,2691.7,2691.3,3.71567]
[1727449835701,3.71513,2691.7,2691.3,3.77972765]
[1727449836224,0.7855,2691.8,2691.3,3.77972765]
[1727449836659,0.7855,2691.8,2691.3,0.06405765]
[1727449836968,4.13573624,2691.8,2691.3,3.0]
[1727449837170,3.71575,2691.3,2690.9,0.7777]
[1727449837370,3.71575,2691.3,2690.8,3.0]
[1727449837526,3.71601,2691.1,2690.7,7.29]
[1727449837726,3.71583,2691.2,2690.7,3.71641]
[1727449837927,3.71583,2691.2,2690.8,3.71636]
[1727449838256,3.71583,2691.2,2690.7,3.71641]
[1727449838257,3.71589,2691.2,2690.7,7.43283]
[1727449838454,0.86809862,2691.3,2690.8,3.71635]
[1727449838665,3.71582,2691.2,2690.8,3.71635]
[1727449838826,3.7163,2690.9,2690.4,3.71683]
[1727449839027,4.6770781,2691.2,2690.6,3.71661]
[1727449839361,3.71577,2691.3,2690.8,3.71629]
[1727449839751,3.71577,2691.3,2690.6,3.71656]
[1727449840095,3.71629,2690.9,2690.3,0.7777]
[1727449840257,3.71596,2691.1,2690.7,3.0]
[1727449840689,3.71596,2691.1,2690.6,3.0]
[1727449840885,1.23964962,2691.3,2690.6,6.71656]
[1727449841198,0.8295,2691.4,2690.6,6.71656]
[1727449841199,3.71596,2691.1,2690.6,6.71663]
[1727449841566,3.71598,2691.1,2690.6,6.71663]
[1727449841790,3.71575,2691.3,2690.8,3.71625]
[1727449842297,3.71575,2691.3,2690.8,4.54195]
[1727449843299,3.71575,2691.3,2690.8,8.25822]
[1727449843599,3.71575,2691.3,2690.8,4.54187]
[1727449843807,3.71575,2691.3,2690.8,0.8256]
[1727449843950,7.08170287,2691.1,2690.6,6.71655]
[1727449844151,7.08170287,2691.1,2690.8,3.0]
[1727449844388,7.08170287,2691.1,2690.5,4.54233]
[1727449844389,7.08170287,2691.1,2690.6,6.71663]
[1727449844584,3.71612,2691.0,2690.6,6.71663]
[1727449844906,3.71576,2691.3,2690.6,6.71663]
[1727449845069,3.71596,2691.1,2690.6,6.71663]
[1727449845476,3.71596,2691.1,2690.7,3.7165]
[1727449846000,3.71596,2691.1,2690.6,6.71663]
[1727449846157,3.71581,2691.2,2690.6,3.71655]
[1727449846365,3.71581,2691.2,2690.7,6.71649]
[1727449846671,3.71607,2691.1,2690.5,0.8256]
[1727449847017,3.71624,2690.9,2690.5,0.8256]
[1727449847219,3.36574287,2691.2,2690.5,0.8256]
[1727449847220,3.7161,2691.0,2690.5,0.8256]
[1727449847388,4.43357523,2691.0,2690.5,0.8256]
[1727449847716,3.71623,2690.9,2690.5,0.8256]
[1727449848023,4.43357523,2691.0,2690.5,0.8256]
[1727449848024,3.7161,2691.0,2690.5,0.8256]
[1727449848175,3.7161,2691.0,2690.6,3.0]
[1727449848376,3.71639,2690.8,2690.5,3.8256]
[1727449848571,3.71639,2690.8,2690.5,0.8256]
[1727449848785,3.71639,2690.8,2690.3,7.49375]
[1727449848987,0.7945,2690.9,2690.4,3.71691]
[1727449849189,3.71618,2691.0,2690.6,3.0]
[1727449849393,0.7945,2691.1,2690.6,6.71655]
[1727449849605,4.51047,2691.1,2690.6,6.71655]
[1727449849773,0.7945,2691.1,2690.7,3.71649]
[1727449850087,3.71558,2691.4,2690.8,0.8232]
[1727449850088,4.48248,2691.4,2690.8,0.8232]
[1727449850287,10.79748287,2691.2,2690.7,3.71643]
[1727449850517,7.08155287,2691.2,2690.6,6.71663]
[1727449850675,7.08155287,2691.2,2690.8,0.06247053]
[1727449850877,3.71597,2691.1,2690.6,6.71663]
[1727449851215,3.71597,2691.1,2690.9,0.06246206]
[1727449851216,3.80899217,2691.0,2690.9,0.06246206]
[1727449851378,3.71623,2690.9,2690.5,3.0]
[1727449851579,3.71623,2690.9,2690.6,3.0]
[1727449851790,7.43203,2691.1,2690.6,3.0]
[1727449852117,7.08168287,2691.2,2690.6,6.71663]
[1727449852523,3.71609,2691.0,2690.6,6.71663]
[1727449852874,3.71609,2691.0,2690.6,3.0]
[1727449853686,3.71631,2690.9,2690.6,3.0]
[1727449853888,0.7521,2690.8,2690.3,6.71704]
[1727449854090,7.08205287,2690.9,2690.5,3.0]
[1727449854274,0.7521,2691.0,2690.6,3.71663]
[1727449854484,0.7521,2691.0,2690.7,3.0]
[1727449855425,7.83472287,2691.2,2690.7,3.0]
[1727449855729,7.83434287,2691.5,2690.7,6.7164]
[1727449856020,8.20589287,2691.5,2690.9,3.71616]
[1727449856219,3.71519,2691.7,2691.1,4.53527]
[1727449856376,7.43044,2691.7,2691.1,4.53527]
[1727449856821,3.71519,2691.7,2691.1,0.8194]
[1727449856973,3.71519,2691.7,2691.2,6.7158]
[1727449857400,3.71519,2691.7,2691.2,6.71573]
[1727449857608,7.83382287,2691.8,2691.2,6.71573]
[1727449857902,0.8128,2692.0,2691.6,3.7152]
[1727449858085,1.15745563,2692.4,2691.6,3.7152]
[1727449858086,0.8128,2692.4,2691.8,4.49579]
[1727449858313,4.17854287,2692.4,2691.8,4.49579]
[1727449858473,4.17854287,2692.4,2691.8,3.85518887]
[1727449858677,4.17854287,2692.4,2691.8,7.49579]
[1727449858913,3.36574287,2692.4,2691.8,7.57008134]
[1727449859369,3.7141,2692.5,2691.8,7.57008134]
[1727449859618,3.71402,2692.5,2691.9,3.71484]
[1727449859825,3.71402,2692.5,2691.9,3.71475]
[1727449860308,4.15094287,2692.6,2691.9,3.71475]
[1727449860618,3.71403,2692.5,2691.9,3.71475]
[1727449860973,4.15094287,2692.6,2692.0,3.7146]
[1727449861177,4.15094287,2692.6,2691.9,3.71475]
[1727449861412,4.15094287,2692.6,2692.1,3.71456]
[1727449861616,4.15094287,2692.6,2691.9,3.71475]
[1727449862056,7.86482287,2692.6,2691.9,3.71475]
[1727449862333,4.15094287,2692.6,2692.0,3.71461]
[1727449862539,4.87096563,2692.9,2692.0,3.0]
[1727449862540,4.12244287,2692.9,2692.0,3.0]
[1727449862703,0.7567,2692.9,2692.4,6.71403]
[1727449862898,3.36574287,2692.8,2692.4,3.0]
[1727449863301,1.203697,2692.9,2692.4,6.71412]
[1727449863532,1.203697,2692.9,2692.4,6.78839563]
[1727449863742,1.203697,2692.9,2692.4,6.71412]
[1727449864405,1.203697,2692.9,2692.4,6.78839564]
[1727449864824,3.7135,2692.9,2692.4,3.0]
[1727449865385,3.7135,2692.9,2692.4,6.71408]
[1727449865797,3.7135,2692.9,2692.5,0.06114171]
[1727449866060,3.36574287,2693.0,2692.5,3.77508171]
[1727449866363,4.13244287,2693.2,2692.5,3.77508171]
[1727449866658,5.25764349,2693.6,2692.5,3.77508171]
[1727449866659,4.46718,2693.4,2692.9,3.71346]
[1727449867017,4.46718,2693.4,2693.0,0.0608589]
[1727449867457,3.71291,2693.3,2693.0,0.0608589]
[1727449867825,3.71291,2693.3,2692.8,6.71349]
[1727449868144,3.71291,2693.3,2692.9,3.71346]
[1727449868450,3.71291,2693.3,2692.9,3.77432736]
[1727449870671,0.7544,2693.4,2692.9,3.77425736]
[1727449870865,0.0786091,2693.5,2692.9,3.77430736]
[1727449871052,3.7913291,2693.5,2693.0,3.71324]
[1727449871369,3.7913291,2693.5,2693.1,0.05962322]
[1727449871533,0.0786091,2693.5,2693.1,3.77279322]
[1727449873834,0.0786091,2693.5,2693.3,3.71291]
[1727449874029,0.0786091,2693.5,2693.2,3.7944]
[1727449874336,0.0786091,2693.5,2693.3,0.05953233]
[1727449874554,0.0786091,2693.5,2693.2,3.7944]
[1727449874942,0.0786091,2693.5,2693.3,0.05953233]
[1727449875188,0.0786091,2693.5,2693.2,3.7944]
[1727449875355,0.0786091,2693.5,2693.4,0.05952388]
[1727449875556,0.0786091,2693.5,2693.2,7.50743]
[1727449875865,0.0786091,2693.5,2693.4,0.05952388]
[1727449876031,0.0786091,2693.5,2693.3,3.77232233]
[1727449876232,0.0786091,2693.5,2693.4,0.05952388]
[1727449876929,0.0786091,2693.5,2693.2,3.0]
[1727449877139,0.0786091,2693.5,2693.4,0.05952388]
[1727449877343,0.0786091,2693.5,2693.2,6.71299]
[1727449877650,0.0786091,2693.5,2693.2,3.0]
[1727449877879,0.0786091,2693.5,2693.3,0.05953233]
[1727449878078,0.0786091,2693.5,2693.2,3.0]
[1727449878241,0.0786091,2693.5,2693.3,0.05953233]
[1727449878449,0.0786091,2693.5,2693.2,3.0]
[1727449878758,3.71311,2693.2,2692.7,7.29]
[1727449878870,3.71311,2693.2,2692.7,11.00371]
[1727449879065,3.71311,2693.2,2692.7,7.29]
[1727449879278,3.71311,2693.2,2692.8,3.7136]
[1727449879581,3.71312,2693.2,2692.8,3.7136]
[1727449879769,3.71312,2693.2,2692.7,7.29]
[1727449879770,3.71312,2693.2,2692.7,11.00361]
[1727449879971,3.71312,2693.2,2692.8,3.0]
[1727449880194,3.71321,2693.1,2692.8,3.0]
[1727449880395,3.71356,2692.9,2692.4,4.54544]
[1727449880683,0.8319,2692.9,2692.4,4.54544]
[1727449880851,4.54538,2692.9,2692.5,0.05745047]
[1727449881050,3.71367,2692.8,2692.5,0.05745047]
[1727449881484,3.71367,2692.8,2691.9,4.54014]
[1727449881485,0.7561,2692.6,2691.9,4.54014]
[1727449881675,0.7561,2692.6,2691.6,3.71518]
[1727449881676,3.7145,2692.2,2691.6,3.71518]
[1727449882014,3.71479,2692.0,2691.4,3.71544]
[1727449882148,3.71486,2691.9,2691.2,4.50744]
[1727449882348,3.71498,2691.8,2691.2,0.7917]
[1727449882578,3.71486,2691.9,2691.1,3.71594]
[1727449882579,3.71513,2691.7,2691.1,3.71594]
[1727449882886,3.71513,2691.7,2691.0,4.52457]
[1727449883244,3.71527,2691.6,2691.0,4.52457]
[1727449883449,0.8055,2691.5,2691.0,3.71597]
[1727449883984,0.8055,2691.5,2690.7,0.7548]
[1727449884193,3.71553,2691.4,2690.7,0.7548]
[1727449884355,3.71567,2691.3,2690.7,0.7548]
[1727449884656,3.71553,2691.4,2690.7,0.7548]
[1727449884657,7.4312,2691.4,2690.7,0.7548]
[1727449884861,3.71553,2691.4,2690.7,0.7548]
[1727449885384,4.973003,2691.5,2690.7,0.7548]
[1727449885797,0.8055,2691.5,2690.7,0.7548]
[1727449885985,4.46992,2691.8,2690.7,0.7548]
[1727449886363,8.18501,2691.8,2690.7,0.7548]
[1727449886565,4.46992,2691.8,2690.7,0.7548]
[1727449886779,4.46992,2691.8,2690.7,4.12054287]
[1727449886780,0.7549,2691.8,2690.7,4.12054287]
[1727449886997,4.46997,2691.8,2690.8,3.0]
[1727449887298,8.18506,2691.8,2690.7,0.7548]
[1727449887586,4.46997,2691.8,2690.7,0.7548]
[1727449887890,4.46997,2691.8,2691.2,3.71573]
[1727449887891,5.62505029,2691.8,2691.2,3.71573]
[1727449888118,3.71512,2691.7,2691.2,3.71573]
[1727449888252,5.62505029,2691.8,2691.2,4.50453]
[1727449889066,9.34017029,2691.8,2691.2,4.50453]
[1727449889479,3.71514,2691.7,2691.2,4.50453]
[1727449889679,5.62505029,2691.8,2691.2,4.50453]
[1727449889880,9.34012029,2691.8,2691.2,4.50453]
[1727449890081,3.71488,2691.9,2691.4,7.431]
[1727449890258,3.71488,2691.9,2691.4,3.7155]
[1727449890873,3.71488,2691.9,2691.3,3.0]
[1727449891074,3.71506,2691.8,2691.3,3.0]
[1727449891254,4.15494287,2692.1,2691.3,3.0]
[1727449891255,7.86960287,2692.1,2691.4,3.71552]
[1727449891458,9.02799716,2692.1,2691.4,3.71552]
[1727449891900,3.71505,2691.8,2691.3,3.0]
[1727449892098,3.71515,2691.7,2691.2,3.7888]